bitfinex/quotes_BTCUSD_20230405
["timestamp","ask_amount","ask_price","bid_price","bid_amount"]
[1680714704228,0.017534,27987.0,27986.0,0.0081]
[1680714705865,0.017534,27987.0,27986.0,0.0071]
[1680714706282,0.00021,27987.0,27983.0,0.07178637]
[1680714706505,0.35709522,27991.0,27984.0,0.042162]
[1680714706702,0.35471056,27991.0,27987.0,0.0045842]
[1680714706908,0.017147,27990.0,27987.0,0.07637057]
[1680714707101,0.017147,27990.0,27987.0,0.0045842]
[1680714707924,0.017147,27990.0,27987.0,0.0275842]
[1680714708145,0.35920445,27991.0,27987.0,0.0275842]
[1680714708364,0.01667,27990.0,27987.0,0.0275842]
[1680714708801,0.373836,27989.0,27987.0,0.023]
[1680714709039,0.017646,27988.0,27987.0,0.023]
[1680714709671,0.017646,27988.0,27986.0,0.00487982]
[1680714709893,0.373836,27989.0,27986.0,0.00487982]
[1680714710111,0.373836,27989.0,27987.0,0.023]
[1680714710336,0.016958,27988.0,27987.0,0.023]
[1680714710753,0.016958,27988.0,27985.0,0.00018]
[1680714710965,0.34398072,27987.0,27986.0,0.028]
[1680714711173,0.36105372,27987.0,27986.0,0.00012]
[1680714711384,0.36105372,27987.0,27983.0,0.00018]
[1680714711599,0.018339,27986.0,27982.0,0.0060453]
[1680714711808,0.16023581,27986.0,27982.0,0.0149883]
[1680714712016,0.34398072,27987.0,27982.0,0.0149883]
[1680714712886,0.35471056,27986.0,27982.0,0.009123]
[1680714713090,0.35471056,27986.0,27982.0,0.00018]
[1680714713297,0.018699,27985.0,27982.0,0.01618]
[1680714713758,0.018699,27985.0,27982.0,0.00018]
[1680714713986,0.35471056,27984.0,27982.0,0.01018]
[1680714714209,0.017269,27983.0,27982.0,0.00018]
[1680714714423,0.017269,27983.0,27982.0,0.01018]
[1680714714627,0.35471056,27984.0,27982.0,0.01]
[1680714715123,0.45376058,27983.0,27982.0,0.01]
[1680714715562,0.45376058,27983.0,27981.0,0.00012]
[1680714715765,0.45376058,27983.0,27982.0,0.01]
[1680714715967,0.47254158,27983.0,27982.0,0.01]
[1680714718906,0.33994671,27983.0,27980.0,0.00602914]
[1680714719128,0.33994671,27983.0,27980.0,0.02902914]
[1680714719347,0.33994671,27983.0,27980.0,0.00602914]
[1680714719564,0.33994671,27983.0,27982.0,0.01]
[1680714719750,0.33994671,27983.0,27980.0,0.00602914]
[1680714719981,0.33994671,27983.0,27980.0,0.02902914]
[1680714720188,0.34235545,27983.0,27980.0,0.02902914]
[1680714720401,0.4501736,27982.0,27980.0,0.00602914]
[1680714720864,0.4501736,27982.0,27977.0,0.23947728]
[1680714721071,0.59228041,27982.0,27978.0,0.10480546]
[1680714721258,0.4503836,27982.0,27978.0,0.10480546]
[1680714721741,0.4503836,27982.0,27980.0,0.023]
[1680714721952,0.4503836,27982.0,27978.0,0.10480546]
[1680714722160,0.4503836,27982.0,27975.0,0.71814241]
[1680714722371,0.14189681,27981.0,27976.0,0.08929095]
[1680714722581,0.14189681,27981.0,27978.0,0.008]
[1680714722793,0.4503836,27982.0,27977.0,0.08048792]
[1680714723005,0.36832009,27981.0,27977.0,0.08048792]
[1680714723213,0.36853009,27981.0,27979.0,0.0065]
[1680714724274,0.5104269,27981.0,27979.0,0.0065]
[1680714724479,0.016931,27980.0,27979.0,0.0065]
[1680714724904,0.003,27981.0,27979.0,0.0065]
[1680714725124,0.70571352,27981.0,27979.0,0.0125]
[1680714725329,0.017386,27980.0,27979.0,0.0065]
[1680714725559,0.43135665,27980.0,27979.0,0.0065]
[1680714725761,0.42735665,27980.0,27979.0,0.0125]
[1680714725969,0.42635665,27980.0,27979.0,0.0065]
[1680714726178,0.42635665,27980.0,27979.0,0.0075]
[1680714727208,0.42635665,27980.0,27979.0,0.0065]
[1680714727416,0.43935665,27980.0,27979.0,0.0429843]
[1680714727619,0.43935665,27980.0,27979.0,0.0075]
[1680714728252,0.42697065,27980.0,27979.0,0.0075]
[1680714730761,0.42697065,27980.0,27979.0,0.049164]
[1680714730984,0.013,27980.0,27979.0,0.049164]
[1680714731194,0.013,27980.0,27979.0,0.05791006]
[1680714731635,0.013,27980.0,27979.0,0.14285108]
[1680714731873,0.013,27980.0,27979.0,0.87341182]
[1680714732088,0.013,27980.0,27979.0,0.9972292]
[1680714732519,0.013,27980.0,27979.0,1.00415739]
[1680714732745,0.013,27980.0,27979.0,0.7913702]
[1680714732974,0.01268942,27983.0,27979.0,0.7905502]
[1680714733203,0.01268942,27983.0,27982.0,0.17007074]
[1680714733411,0.01268942,27983.0,27982.0,0.21505174]
[1680714733629,0.01268942,27983.0,27982.0,0.22307634]
[1680714734514,0.01268942,27983.0,27982.0,0.24867634]
[1680714734515,0.01568942,27983.0,27982.0,0.24867634]
[1680714735834,0.01268942,27983.0,27982.0,0.24167634]
[1680714736049,0.01468942,27983.0,27982.0,0.29119403]
[1680714736177,0.01268942,27983.0,27982.0,0.28419403]
[1680714736405,0.01468942,27983.0,27982.0,0.64590459]
[1680714736627,0.01468942,27983.0,27982.0,0.29119403]
[1680714738676,0.01268942,27983.0,27982.0,0.27616943]
[1680714738873,0.01268942,27983.0,27982.0,0.28316943]
[1680714738874,0.01368942,27983.0,27982.0,0.28316943]
[1680714739275,0.46183875,27983.0,27982.0,0.28316943]
[1680714739450,0.36839998,27983.0,27982.0,0.40863141]
[1680714739665,0.41481486,27983.0,27982.0,0.11075381]
[1680714740299,0.85452079,27983.0,27982.0,0.10375381]
[1680714740512,0.87120979,27983.0,27982.0,0.10975381]
[1680714741086,0.82500491,27983.0,27982.0,0.10975381]
[1680714741291,0.84287191,27983.0,27982.0,0.10975381]
[1680714741490,0.84287191,27983.0,27982.0,0.0246]
[1680714742062,0.80831591,27983.0,27982.0,0.10375381]
[1680714742267,0.82131591,27983.0,27982.0,0.10475381]
[1680714743304,0.83918291,27983.0,27982.0,0.10475381]
[1680714743545,0.46660535,27983.0,27982.0,0.10475381]
[1680714745054,0.46660535,27983.0,27982.0,0.23246817]
[1680714745276,0.02589942,27983.0,27982.0,0.14731436]
[1680714745501,0.02568942,27983.0,27982.0,0.17822092]
[1680714746151,0.02568942,27983.0,27982.0,0.22259392]
[1680714746366,0.02568942,27983.0,27981.0,0.21276843]
[1680714746581,0.02568942,27983.0,27982.0,0.036136]
[1680714746801,0.02568942,27983.0,27982.0,0.24872443]
[1680714747011,0.02568942,27983.0,27982.0,0.036136]
[1680714747225,0.02568942,27983.0,27982.0,0.037893]
[1680714747440,0.02568942,27983.0,27981.0,0.036393]
[1680714747643,0.02568942,27983.0,27981.0,0.21539673]
[1680714747852,0.02568942,27983.0,27982.0,0.025757]
[1680714748066,0.01268942,27983.0,27982.0,0.025757]
[1680714748271,0.01868942,27983.0,27982.0,0.1072972]
[1680714748475,0.01268942,27983.0,27982.0,0.46100776]
[1680714748680,0.01568942,27983.0,27982.0,0.46100776]
[1680714748888,0.01268942,27983.0,27982.0,0.46100776]
[1680714749092,0.01568942,27983.0,27982.0,0.46700776]
[1680714749299,0.01268942,27983.0,27982.0,0.46100776]
[1680714749710,0.01568942,27983.0,27982.0,0.46700776]
[1680714750116,0.01568942,27983.0,27982.0,0.76700776]
[1680714750527,0.01568942,27983.0,27982.0,0.4122972]
[1680714751013,0.01568942,27983.0,27982.0,0.331757]
[1680714751219,0.00908088,27983.0,27982.0,0.41221193]
[1680714751423,0.00908088,27983.0,27982.0,0.76692249]
[1680714752667,0.00908088,27983.0,27982.0,0.41221193]
[1680714753696,0.00908088,27983.0,27982.0,0.11221193]
[1680714753903,0.43832218,27983.0,27982.0,0.24460022]
[1680714754105,0.43832218,27983.0,27982.0,0.54478022]
[1680714754935,0.43832218,27983.0,27982.0,0.17647224]
[1680714755184,0.93513955,27983.0,27982.0,0.13371644]
[1680714755433,0.79024274,27983.0,27982.0,0.12771644]
[1680714755643,0.79224274,27983.0,27982.0,0.13271644]
[1680714756475,0.00629088,27983.0,27982.0,0.19950281]
[1680714756683,0.00608088,27983.0,27982.0,0.19691624]
[1680714756890,0.00608088,27983.0,27982.0,0.17029224]
[1680714757301,0.01929088,27983.0,27982.0,0.17129224]
[1680714757507,0.00629088,27983.0,27982.0,0.19554224]
[1680714757717,0.00629088,27983.0,27982.0,0.17129224]
[1680714757923,0.00629088,27983.0,27982.0,0.17029224]
[1680714758128,0.00729088,27983.0,27982.0,0.20083924]
[1680714758535,0.00629088,27983.0,27982.0,0.19583924]
[1680714758737,0.00629088,27983.0,27982.0,0.19577724]
[1680714758953,0.00629088,27983.0,27982.0,0.17029224]
[1680714759564,0.00629088,27983.0,27982.0,0.17129224]
[1680714759768,0.00629088,27983.0,27982.0,0.17029224]
[1680714759973,0.00729088,27983.0,27982.0,0.17529224]
[1680714760378,0.00629088,27983.0,27982.0,0.17029224]
[1680714760588,0.00629088,27983.0,27982.0,0.17129224]
[1680714760788,0.00629088,27983.0,27982.0,0.17029224]
[1680714761192,0.00629088,27983.0,27982.0,0.19754224]
[1680714761396,0.00629088,27983.0,27982.0,0.20254224]
[1680714761397,0.00729088,27983.0,27982.0,0.20254224]
[1680714761601,0.00729088,27983.0,27982.0,0.20138924]
[1680714761804,0.00729088,27983.0,27982.0,0.20171824]
[1680714762222,0.00708088,27983.0,27982.0,0.20171824]
[1680714762427,0.00608088,27983.0,27982.0,0.19671824]
[1680714762947,0.00708088,27983.0,27982.0,0.20171824]
[1680714763364,0.00608088,27983.0,27982.0,0.19671824]
[1680714763563,0.00608088,27983.0,27982.0,0.19771824]
[1680714764023,0.00608088,27983.0,27982.0,0.19671824]
[1680714764238,0.00708088,27983.0,27982.0,0.20171824]
[1680714764452,0.00608088,27983.0,27982.0,0.19671824]
[1680714765543,0.00608088,27983.0,27982.0,1.19771824]
[1680714765768,0.00608088,27983.0,27982.0,1.19671824]
[1680714766058,0.00708088,27983.0,27982.0,1.20171824]
[1680714766276,0.00608088,27983.0,27982.0,1.39821237]
[1680714766490,0.00608088,27983.0,27982.0,1.327426]
[1680714766697,0.00608088,27983.0,27982.0,1.40696312]
[1680714766920,0.00708088,27983.0,27982.0,1.41196312]
[1680714767338,0.00608088,27983.0,27982.0,1.40696312]
[1680714768439,0.00708088,27983.0,27982.0,1.76667368]
[1680714768620,0.00708088,27983.0,27982.0,1.77517368]
[1680714770257,0.00708088,27983.0,27982.0,1.95385368]
[1680714770816,0.00708088,27983.0,27982.0,2.20905835]
[1680714771466,0.00708088,27983.0,27982.0,2.20405835]
[1680714771671,0.00608088,27983.0,27982.0,2.20405835]
[1680714771878,0.00808088,27983.0,27982.0,2.21605835]
[1680714772341,0.00608088,27983.0,27982.0,2.20405835]
[1680714772551,0.00808088,27983.0,27982.0,2.21605835]
[1680714772756,0.00598413,27983.0,27982.0,2.20405835]
[1680714772955,0.00798413,27983.0,27982.0,2.21605835]
[1680714776165,0.00798413,27983.0,27982.0,2.03737835]
[1680714776364,0.00798413,27983.0,27982.0,1.67416779]
[1680714776585,0.00798413,27983.0,27982.0,1.41896312]
[1680714779542,0.00798413,27983.0,27982.0,1.84546005]
[1680714779756,0.04932064,27988.0,27983.0,0.00798]
[1680714779930,0.00021,27991.0,27986.0,0.17865]
[1680714780130,0.00021,27991.0,27990.0,0.2123006]
[1680714780328,0.00021,27991.0,27990.0,0.18163861]
[1680714780882,0.00021,27991.0,27990.0,0.10985224]
[1680714781254,0.00121,27991.0,27990.0,0.10985224]
[1680714781473,0.00021,27991.0,27990.0,0.10985224]
[1680714781846,0.02021,27991.0,27990.0,0.11085224]
[1680714782003,0.00021,27991.0,27990.0,0.10985224]
[1680714782235,0.00021,27991.0,27990.0,0.024932]
[1680714782438,0.00021,27991.0,27990.0,0.025932]
[1680714782439,0.01321,27991.0,27990.0,0.025932]
[1680714782648,0.01321,27991.0,27990.0,0.001]
[1680714783207,0.45619357,27991.0,27990.0,0.001]
[1680714783408,0.36792056,27991.0,27990.0,0.001]
[1680714783617,0.40708862,27991.0,27990.0,0.001]
[1680714783831,0.44198562,27991.0,27990.0,0.001]
[1680714784048,0.40281756,27991.0,27990.0,0.001]
[1680714784248,0.80865206,27991.0,27990.0,0.001]
[1680714784455,0.38981756,27991.0,27986.0,0.2123006]
[1680714784672,0.35471056,27990.0,27986.0,0.2123006]
[1680714784900,0.35492056,27990.0,27986.0,0.2123006]
[1680714785309,0.37822667,27989.0,27986.0,0.2123006]
[1680714785513,0.73314723,27989.0,27986.0,0.2123006]
[1680714785969,0.73314723,27989.0,27986.0,0.2133006]
[1680714786171,0.35492056,27989.0,27986.0,0.2133006]
[1680714786375,0.35492056,27989.0,27987.0,0.2123006]
[1680714786522,0.76471774,27989.0,27987.0,0.08492024]
[1680714787537,0.76971774,27989.0,27987.0,0.08492024]
[1680714787953,0.35992056,27989.0,27987.0,0.08492024]
[1680714789579,0.00521,27989.0,27987.0,0.08492024]
[1680714791715,0.3319686,27988.0,27987.0,0.08492024]
[1680714791889,0.3321786,27988.0,27987.0,0.08492024]
[1680714793154,0.3371786,27988.0,27987.0,0.08492024]
[1680714795687,0.3371786,27988.0,27987.0,0.11094824]
[1680714795863,0.3371786,27988.0,27987.0,0.08492024]
[1680714797973,0.00521,27988.0,27987.0,0.08492024]
[1680714798169,0.005,27988.0,27987.0,0.11037324]
[1680714798390,0.005,27988.0,27987.0,0.08492024]
[1680714798592,0.005,27988.0,27987.0,0.11157324]
[1680714799178,0.005,27988.0,27987.0,0.08492024]
[1680714799387,0.00521,27988.0,27987.0,0.08492024]
[1680714800153,0.005,27988.0,27987.0,0.11039424]
[1680714800344,0.005,27988.0,27987.0,0.2377746]
[1680714800967,0.005,27988.0,27987.0,0.15285436]
[1680714801750,0.005,27988.0,27987.0,0.32269484]
[1680714801980,0.02397001,27992.0,27987.0,0.32269484]
[1680714802181,0.02376001,27992.0,27988.0,0.11156983]
[1680714802384,0.02397001,27992.0,27989.0,0.10983483]
[1680714802647,0.02376001,27992.0,27990.0,0.025792]
[1680714803052,0.02376001,27992.0,27990.0,0.11070283]
[1680714803053,0.02876001,27992.0,27990.0,0.11070283]
[1680714803264,0.02376001,27992.0,27991.0,0.026652]
[1680714803656,0.02876001,27992.0,27991.0,0.026652]
[1680714804916,0.02376001,27992.0,27991.0,0.026652]
[1680714805128,0.02876001,27992.0,27991.0,0.026652]
[1680714805336,0.02376001,27992.0,27991.0,0.026652]
[1680714805566,0.03576001,27992.0,27991.0,0.027652]
[1680714805782,0.03576001,27992.0,27991.0,0.001]
[1680714808750,9e-05,27993.0,27992.0,0.06423999]
[1680714808958,0.41629672,27994.0,27992.0,0.06414999]
[1680714809253,0.77121728,27994.0,27992.0,0.06414999]
[1680714810347,0.35471056,27993.0,27992.0,0.06414999]
[1680714810554,0.38796756,27993.0,27992.0,0.06414999]
[1680714810769,0.38781756,27993.0,27992.0,0.06414999]
[1680714811409,0.81491952,27993.0,27992.0,0.06414999]
[1680714811588,0.81491952,27993.0,27992.0,0.06614999]
[1680714811842,0.81512952,27993.0,27992.0,0.06414999]
[1680714812028,0.83212952,27993.0,27992.0,0.06614999]
[1680714812232,0.84891747,27993.0,27992.0,0.06614999]
[1680714813203,0.83212952,27993.0,27992.0,0.06614999]
[1680714814018,0.42288856,27993.0,27992.0,0.06614999]
[1680714814235,0.46755342,27993.0,27992.0,0.06614999]
[1680714814658,0.88664408,27993.0,27992.0,0.06614999]
[1680714814866,0.84197922,27993.0,27992.0,0.06614999]
[1680714815072,0.42288856,27993.0,27992.0,0.06614999]
[1680714815283,0.43138856,27993.0,27992.0,0.06614999]
[1680714815704,0.43138856,27993.0,27992.0,0.06414999]
[1680714815705,0.41438856,27993.0,27992.0,0.06414999]
[1680714815924,0.67036027,27993.0,27992.0,0.06414999]
[1680714816144,0.69236027,27993.0,27992.0,0.06414999]
[1680714816813,0.35471056,27984.0,27982.0,0.06371899]
[1680714817042,0.35471056,27979.0,27975.0,0.08508417]
[1680714817266,0.35471056,27979.0,27973.0,0.00012]
[1680714817267,0.336632,27978.0,27973.0,0.00012]
[1680714817499,0.33525,27977.0,27969.0,0.12753633]
[1680714817715,0.3,27972.0,27966.0,0.14931633]
[1680714817938,0.35471056,27967.0,27966.0,0.0216]
[1680714818159,0.65459337,27967.0,27966.0,0.0216]
[1680714818381,0.51269656,27967.0,27966.0,0.0216]
[1680714818606,0.38755056,27967.0,27966.0,0.0216]
[1680714818827,0.03263,27967.0,27966.0,0.0216]
[1680714819075,0.04960323,27972.0,27966.0,0.44809693]
[1680714819281,0.40431379,27972.0,27967.0,0.07178637]
[1680714819490,9e-05,27972.0,27967.0,0.07178637]
[1680714819701,0.04953336,27973.0,27968.0,0.7855]
[1680714819918,0.00021,27979.0,27966.0,0.17178]
[1680714820145,0.49660737,27978.0,27972.0,0.0216]
[1680714820383,0.032503,27977.0,27973.0,0.07178637]
[1680714820612,0.35471056,27976.0,27973.0,0.07178637]
[1680714820831,0.034175,27975.0,27972.0,0.0216]
[1680714821046,0.38888556,27975.0,27972.0,0.0236]
[1680714821256,0.033283,27974.0,27972.0,0.0216]
[1680714821468,0.00121,27976.0,27973.0,0.002]
[1680714821678,0.001,27976.0,27974.0,0.44475585]
[1680714822536,0.04978286,27979.0,27975.0,0.07178637]
[1680714822759,0.04957286,27979.0,27976.0,0.07178637]
[1680714823014,0.15,27993.0,27977.0,0.52997656]
[1680714823015,0.00021,27988.0,27977.0,0.52997656]
[1680714823254,0.35471056,27987.0,27978.0,0.39728937]
[1680714823476,0.35492056,27987.0,27979.0,0.025556]
[1680714823681,0.35492056,27987.0,27980.0,0.07178637]
[1680714823895,0.40456508,27987.0,27980.0,0.07178637]
[1680714824360,0.5899184,27987.0,27980.0,0.07178637]
[1680714824785,0.54946189,27987.0,27980.0,0.07178637]
[1680714825882,0.04985452,27987.0,27981.0,0.35471056]
[1680714826101,0.04985452,27987.0,27982.0,0.39662537]
[1680714826102,0.05264452,27987.0,27982.0,0.39662537]
[1680714826317,0.00021,27992.0,27983.0,0.026153]
[1680714826543,0.003,27987.0,27984.0,0.07178637]
[1680714826801,0.00021,27990.0,27985.0,0.02626]
[1680714827010,0.002,27987.0,27985.0,0.07178637]
[1680714827230,0.35492056,27991.0,27986.0,0.024895]
[1680714827446,0.40467292,27991.0,27986.0,0.43170966]
[1680714827867,0.40467292,27991.0,27986.0,0.07178637]
[1680714828107,0.40467292,27991.0,27986.0,0.45626546]
[1680714828108,0.001,27987.0,27986.0,0.45626546]
[1680714828341,0.40467292,27991.0,27986.0,0.48133146]
[1680714828342,0.00021,27990.0,27986.0,0.48133146]
[1680714828559,0.00021,27990.0,27986.0,0.45726546]
[1680714828777,0.00021,27990.0,27986.0,0.07278637]
[1680714828998,0.04975236,27991.0,27987.0,0.026955]
[1680714829224,0.04975236,27991.0,27985.0,0.15]
[1680714829225,0.00021,27993.0,27986.0,0.026465]
[1680714829450,0.49660737,27993.0,27987.0,0.07178637]
[1680714829675,0.009,27990.0,27988.0,0.37555233]
[1680714829885,0.00021,27991.0,27988.0,0.37555233]
[1680714830509,0.00021,27991.0,27986.0,0.007]
[1680714830722,0.00021,27991.0,27986.0,0.44589364]
[1680714830723,0.14189681,27991.0,27986.0,0.44589364]
[1680714830949,0.14210681,27991.0,27987.0,0.42960049]
[1680714831160,0.00021,27991.0,27987.0,0.42960049]
[1680714831367,0.35671056,27990.0,27988.0,0.007]
[1680714831574,0.034606,27989.0,27986.0,0.40610855]
[1680714831786,0.35492056,27990.0,27986.0,0.41310855]
[1680714832002,0.35492056,27990.0,27986.0,0.40610855]
[1680714832861,0.35692056,27990.0,27986.0,0.41310855]
[1680714836525,0.49881737,27990.0,27986.0,0.41310855]
[1680714836731,0.032942,27989.0,27986.0,0.007]
[1680714836862,0.37257456,27988.0,27986.0,0.007]
[1680714837090,0.033064,27987.0,27986.0,0.007]
[1680714837291,0.40563956,27987.0,27986.0,0.007]
[1680714837524,0.37278556,27987.0,27986.0,0.007]
[1680714837788,0.37278556,27987.0,27984.0,0.41069005]
[1680714837994,0.37278556,27987.0,27986.0,0.005]
[1680714838208,0.37278556,27987.0,27984.0,0.41069005]
[1680714838435,0.35471056,27986.0,27984.0,0.41069005]
[1680714838644,0.35492056,27986.0,27984.0,0.41069005]
[1680714839234,0.35492056,27986.0,27984.0,0.41169005]
[1680714840297,0.35462085,27986.0,27984.0,0.00018]
[1680714840492,0.35462085,27986.0,27982.0,0.37292157]
[1680714840712,0.35462085,27986.0,27983.0,0.39081034]
[1680714840917,0.35662085,27986.0,27983.0,0.36460234]
[1680714841337,0.35462085,27986.0,27983.0,0.36460234]
[1680714841770,0.36362085,27986.0,27983.0,0.36460234]
[1680714842290,0.36562085,27986.0,27983.0,0.36460234]
[1680714843125,0.35462085,27986.0,27983.0,0.36460234]
[1680714843354,0.35662085,27986.0,27983.0,0.37060234]
[1680714843570,0.35462085,27986.0,27983.0,0.36460234]
[1680714843775,0.35562085,27986.0,27983.0,0.37060234]
[1680714843987,0.35462085,27986.0,27983.0,0.36460234]
[1680714844400,0.35662085,27986.0,27983.0,0.37060234]
[1680714844618,0.35462085,27986.0,27983.0,0.00018]
[1680714844837,0.031715,27985.0,27983.0,0.33940102]
[1680714845053,0.001,27986.0,27984.0,0.12276279]
[1680714845277,0.001,27986.0,27985.0,0.35968401]
[1680714845499,0.001,27986.0,27985.0,0.39741137]
[1680714845712,0.001,27986.0,27985.0,0.325625]
[1680714845954,0.04935079,27993.0,27985.0,0.68883556]
[1680714846179,0.02376001,27995.0,27986.0,0.75229593]
[1680714846390,0.02376001,27995.0,27986.0,0.72649693]
[1680714846391,0.37847057,27995.0,27986.0,0.72649693]
[1680714846603,0.52057738,27995.0,27986.0,0.72649693]
[1680714847032,0.52057738,27995.0,27986.0,0.37178637]
[1680714847033,0.49660737,27994.0,27986.0,0.37178637]
[1680714847282,0.51467837,27994.0,27986.0,0.37178637]
[1680714847499,0.002,27993.0,27986.0,0.07178637]
[1680714847713,0.14189681,27993.0,27986.0,0.07178637]
[1680714847925,0.14189681,27993.0,27987.0,0.33463474]
[1680714848137,0.09338588,27992.0,27987.0,0.30255968]
[1680714848327,0.09359588,27992.0,27987.0,0.23077331]
[1680714849440,0.09559588,27992.0,27987.0,0.24677331]
[1680714849647,0.09359588,27992.0,27987.0,0.23077331]
[1680714849898,0.09559588,27992.0,27987.0,0.24677331]
[1680714850315,0.09359588,27992.0,27987.0,0.23077331]
[1680714850521,0.09559588,27992.0,27987.0,0.24677331]
[1680714850697,0.09359588,27992.0,27987.0,0.23077331]
[1680714850907,0.00021,27992.0,27987.0,0.25191624]
[1680714851060,0.14970372,27994.0,27988.0,0.512339]
[1680714851281,0.07657858,27994.0,27989.0,0.37951356]
[1680714851488,0.07657858,27994.0,27990.0,0.325973]
[1680714851489,0.12633025,27994.0,27990.0,0.325973]
[1680714851704,0.12633025,27994.0,27991.0,0.025592]
[1680714852115,0.04975167,27994.0,27991.0,0.025592]
[1680714852540,0.10422471,27995.0,27991.0,0.053592]
[1680714852753,0.10422471,27995.0,27992.0,0.025562]
[1680714852959,0.02376001,27995.0,27992.0,0.025562]
[1680714853164,0.02376001,27995.0,27993.0,0.33134484]
[1680714853370,0.02376001,27995.0,27994.0,0.026199]
[1680714855254,0.02376001,27995.0,27994.0,0.040199]
[1680714855659,0.02376001,27995.0,27994.0,0.46848137]
[1680714858181,0.02376001,27995.0,27994.0,0.07516567]
[1680714858397,0.02376001,27995.0,27994.0,0.84804797]
[1680714858596,0.01506001,27995.0,27994.0,1.29621385]
[1680714858836,0.01506001,27995.0,27994.0,1.30477385]
[1680714859088,0.01506001,27995.0,27994.0,1.30489385]
[1680714859522,0.01506001,27995.0,27994.0,1.35232595]
[1680714860354,0.01506001,27995.0,27994.0,1.17372595]
[1680714862243,0.01506001,27995.0,27994.0,0.81901539]
[1680714862451,0.01506001,27995.0,27994.0,0.81051539]
[1680714865651,0.01506001,27995.0,27994.0,0.37534567]
[1680714865862,0.09242164,27995.0,27994.0,0.04914667]
[1680714866082,0.09242164,27995.0,27994.0,0.37436567]
[1680714866314,0.01506001,27995.0,27994.0,0.37454567]
[1680714866525,0.01506001,27995.0,27994.0,0.75442688]
[1680714867562,0.01506001,27995.0,27994.0,0.21266947]
[1680714867781,0.01506001,27995.0,27993.0,0.40917155]
[1680714867987,0.11264057,27995.0,27994.0,0.018802]
[1680714869048,0.11364057,27995.0,27994.0,0.018802]
[1680714869681,0.11364057,27995.0,27994.0,0.318802]
[1680714869908,0.11264057,27995.0,27994.0,0.318802]
[1680714870141,0.11364057,27995.0,27994.0,0.331802]
[1680714872639,0.01606001,27995.0,27994.0,0.331802]
[1680714874422,0.01606001,27995.0,27994.0,0.36801522]
[1680714875702,0.01606001,27995.0,27994.0,0.331802]
[1680714878083,0.01606001,27995.0,27994.0,0.79279228]
[1680714878293,0.01606001,27995.0,27994.0,1.09279228]
[1680714879166,0.01606001,27995.0,27994.0,0.73031919]
[1680714879385,0.00716001,27995.0,27994.0,0.74822004]
[1680714879605,0.00716001,27995.0,27994.0,0.72941804]
[1680714879822,0.00616001,27995.0,27994.0,0.9072485]
[1680714880259,0.00716001,27995.0,27994.0,0.9292485]
[1680714880564,0.00616001,27995.0,27994.0,0.57019401]
[1680714880623,0.00616001,27995.0,27994.0,0.59219401]
[1680714880624,0.00716001,27995.0,27994.0,0.59219401]
[1680714880795,0.00616001,27995.0,27994.0,0.57019401]
[1680714880999,0.00716001,27995.0,27994.0,0.59219401]
[1680714881208,0.00716001,27995.0,27994.0,0.94401737]
[1680714881554,0.00716001,27995.0,27994.0,0.98916411]
[1680714881752,0.00716001,27995.0,27994.0,0.59219401]
[1680714881941,0.00716001,27995.0,27994.0,0.57441316]
[1680714882148,0.00616001,27995.0,27994.0,0.55247316]
[1680714882348,0.00716001,27995.0,27994.0,0.96644299]
[1680714882549,0.00716001,27995.0,27994.0,0.57447316]
[1680714882704,0.00716001,27995.0,27994.0,1.03126354]
[1680714884994,0.00716001,27995.0,27994.0,0.82718001]
[1680714886660,0.00716001,27995.0,27994.0,0.83601853]
[1680714888366,0.00716001,27995.0,27994.0,0.92050848]
[1680714889182,0.00716001,27995.0,27994.0,1.27521904]
[1680714889385,0.00716001,27995.0,27994.0,1.19922909]
[1680714889812,0.00716001,27995.0,27994.0,1.28371904]
[1680714890017,0.00716001,27995.0,27994.0,1.19922909]
[1680714890643,0.00716001,27995.0,27994.0,0.83601853]
[1680714891286,0.00716001,27995.0,27994.0,0.92050848]
[1680714891510,0.00716001,27995.0,27994.0,0.45117429]
[1680714891720,0.09877923,27995.0,27994.0,0.07839415]
[1680714891943,0.00716001,27995.0,27994.0,0.07839415]
[1680714892144,0.00616001,27995.0,27994.0,0.05639415]
[1680714892353,0.00816001,27995.0,27994.0,0.07639415]
[1680714892741,0.00616001,27995.0,27994.0,0.05639415]
[1680714893443,0.00616001,27995.0,27994.0,0.35639415]
[1680714893655,0.00816001,27995.0,27994.0,0.37639415]
[1680714893857,0.00616001,27995.0,27994.0,0.35639415]
[1680714894063,0.00616001,27995.0,27994.0,0.7496852]
[1680714894683,0.00616001,27995.0,27994.0,0.7666852]
[1680714894684,0.00816001,27995.0,27994.0,0.7666852]
[1680714895569,0.00616001,27995.0,27994.0,0.83453434]
[1680714895820,0.00816001,27995.0,27994.0,0.85153434]
[1680714896042,0.00816001,27995.0,27994.0,0.9357275]
[1680714896466,0.00816001,27995.0,27994.0,1.10944761]
[1680714896684,0.00816001,27995.0,27994.0,1.30344236]
[1680714897347,0.02051945,27997.0,27994.0,0.75450556]
[1680714897562,0.46822098,27999.0,27996.0,0.78799307]
[1680714897563,0.45259716,27999.0,27996.0,0.78799307]
[1680714897782,0.45259716,27999.0,27997.0,0.56721995]
[1680714897993,0.45259716,27999.0,27998.0,0.012448]
[1680714898203,0.45259716,27999.0,27998.0,0.09241584]
[1680714899496,0.54256791,27999.0,27998.0,0.30470485]
[1680714899680,0.45259716,27999.0,27998.0,0.48248214]
[1680714899917,0.45259716,27999.0,27998.0,0.51048214]
[1680714900125,0.45280716,27999.0,27998.0,0.89472091]
[1680714900333,0.45280716,27999.0,27998.0,0.85228076]
[1680714900552,0.45280716,27999.0,27998.0,0.80976747]
[1680714900993,0.45280716,27999.0,27998.0,0.97961633]
[1680714901213,0.45280716,27999.0,27998.0,1.02961633]
[1680714901439,0.45280716,27999.0,27998.0,1.02960616]
[1680714901885,0.45280716,27999.0,27998.0,0.8597573]
[1680714903468,0.40259716,27999.0,27998.0,0.8599373]
[1680714906432,0.40259716,27999.0,27998.0,0.56047686]
[1680714906851,0.40259716,27999.0,27998.0,0.95161271]
[1680714907265,0.40259716,27999.0,27998.0,0.99405286]
[1680714907481,0.40259716,27999.0,27998.0,1.07374276]
[1680714907691,0.40259716,27999.0,27998.0,1.04581747]
[1680714907900,0.40259716,27999.0,27998.0,1.41141306]
[1680714908503,0.40259716,27999.0,27998.0,1.38341306]
[1680714908752,0.40259716,27999.0,27998.0,1.41141306]
[1680714908972,0.40259716,27999.0,27998.0,1.00566389]
[1680714909183,0.40259716,27999.0,27998.0,0.92597399]
[1680714909398,0.40259716,27999.0,27998.0,1.110263]
[1680714909613,0.40259716,27999.0,27998.0,1.21795567]
[1680714909828,0.40259716,27999.0,27998.0,1.138263]
[1680714910041,0.40259716,27999.0,27998.0,1.21795267]
[1680714910255,0.40259716,27999.0,27998.0,1.138263]